[Event "Early-Titled-Tuesday-Blitz-October-24-2023"]
[Site "Chess.com"]
[Date "2023.10.24"]
[Round "2"]
[White "Mariia89"]
[Black "Caterpiller35"]
[Result "0-1"]
[WhiteElo "2126"]
[BlackElo "2439"]
[TimeControl "180+1"]
[EndTime "8:17:20 PDT"]
[Termination "Caterpiller35 won by checkmate"]

1. d4 {[%clk 0:02:59.4]} 1... Nf6 {[%clk 0:02:57.3]} 2. Nf3 {[%clk 0:02:59]}
2... e6 {[%clk 0:02:56.8]} 3. Bg5 {[%clk 0:02:58.7]} 3... c5 {[%clk 0:02:56.2]}
4. e3 {[%clk 0:02:58.8]} 4... b6 {[%clk 0:02:52.5]} 5. c3 {[%clk 0:02:58.6]}
5... Bb7 {[%clk 0:02:51.2]} 6. Nbd2 {[%clk 0:02:59.1]} 6... Be7 {[%clk
0:02:49.9]} 7. Bd3 {[%clk 0:02:59.6]} 7... Nc6 {[%clk 0:02:48.8]} 8. O-O {[%clk
0:02:59.6]} 8... O-O {[%clk 0:02:49.1]} 9. Re1 {[%clk 0:02:59.9]} 9... cxd4
{[%clk 0:02:49.3]} 10. exd4 {[%clk 0:02:59.4]} 10... Nd5 {[%clk 0:02:49.9]} 11.
Bxe7 {[%clk 0:02:54.5]} 11... Ncxe7 {[%clk 0:02:46]} 12. g3 {[%clk 0:02:50.6]}
12... f5 {[%clk 0:02:44.5]} 13. a3 {[%clk 0:02:42.1]} 13... f4 {[%clk
0:02:32.6]} 14. c4 {[%clk 0:02:36.2]} 14... fxg3 {[%clk 0:02:33.5]} 15. hxg3
{[%clk 0:02:36.2]} 15... Nf6 {[%clk 0:02:30.7]} 16. Ne5 {[%clk 0:02:31.6]} 16...
Rc8 {[%clk 0:02:23.3]} 17. Rc1 {[%clk 0:02:27.7]} 17... Nf5 {[%clk 0:02:23.1]}
18. Ndf3 {[%clk 0:02:18.4]} 18... d6 {[%clk 0:02:13.9]} 19. Bxf5 {[%clk
0:02:18.2]} 19... exf5 {[%clk 0:02:13.9]} 20. Nd3 {[%clk 0:02:17.7]} 20... Ne4
{[%clk 0:02:13.1]} 21. Nf4 {[%clk 0:02:16]} 21... Qf6 {[%clk 0:02:06.6]} 22. b3
{[%clk 0:01:38.3]} 22... g5 {[%clk 0:02:01.6]} 23. Ng2 {[%clk 0:01:38.5]} 23...
Qh6 {[%clk 0:01:56.1]} 24. d5 {[%clk 0:01:37.5]} 24... Rce8 {[%clk 0:01:54]} 25.
Nd4 {[%clk 0:01:37.4]} 25... Bc8 {[%clk 0:01:52.4]} 26. Nc6 {[%clk 0:01:32.3]}
26... Qh3 {[%clk 0:01:48.9]} 27. Qf3 {[%clk 0:01:23.1]} 27... Rf6 {[%clk
0:01:43.2]} 28. Ne3 {[%clk 0:01:20.4]} 28... f4 {[%clk 0:01:27.1]} 29. Nf1
{[%clk 0:01:18.3]} 29... fxg3 {[%clk 0:01:22.3]} 30. Qxf6 {[%clk 0:01:17.1]}
30... Nxf6 {[%clk 0:01:17.1]} 31. Nxg3 {[%clk 0:01:16.3]} 31... Bg4 {[%clk
0:01:10.8]} 32. Nd4 {[%clk 0:01:08.3]} 32... Re5 {[%clk 0:01:05]} 33. b4 {[%clk
0:00:52.7]} 33... h5 {[%clk 0:00:58.9]} 34. Nf1 {[%clk 0:00:49.7]} 34... Qxa3
{[%clk 0:00:45.8]} 35. Ne3 {[%clk 0:00:49.7]} 35... Qxb4 {[%clk 0:00:44.8]} 36.
Nc6 {[%clk 0:00:49.4]} 36... Qd2 {[%clk 0:00:38.7]} 37. Nxe5 {[%clk 0:00:49]}
37... dxe5 {[%clk 0:00:39.6]} 38. Ng2 {[%clk 0:00:47.3]} 38... Bf3 {[%clk
0:00:33.3]} 39. Ra1 {[%clk 0:00:39.4]} 39... a5 {[%clk 0:00:31.9]} 40. Ne3
{[%clk 0:00:39]} 40... Ne4 {[%clk 0:00:29.8]} 41. Rf1 {[%clk 0:00:37.1]} 41...
Be2 {[%clk 0:00:28.6]} 42. Rfe1 {[%clk 0:00:36.4]} 42... Bxc4 {[%clk 0:00:24.9]}
43. Ng4 {[%clk 0:00:28.8]} 43... hxg4 {[%clk 0:00:17.6]} 44. Rxe4 {[%clk
0:00:28.8]} 44... Bxd5 {[%clk 0:00:18.2]} 45. Rxg4 {[%clk 0:00:28.6]} 45... Kf7
{[%clk 0:00:18.1]} 46. Rg3 {[%clk 0:00:25.9]} 46... Qe2 {[%clk 0:00:17.2]} 47.
Re3 {[%clk 0:00:25.1]} 47... Qc4 {[%clk 0:00:16.4]} 48. Rae1 {[%clk 0:00:24.4]}
48... Qg4+ {[%clk 0:00:15.7]} 49. Kh2 {[%clk 0:00:23.2]} 49... Qg2# {[%clk
0:00:15.1]} 0-1

[Event "Early-Titled-Tuesday-Blitz-October-24-2023"]
[Site "Chess.com"]
[Date "2023.10.24"]
[Round "2"]
[White "IngOscarArdila"]
[Black "Savagelittlemole"]
[Result "1-0"]
[WhiteElo "2314"]
[BlackElo "2509"]
[TimeControl "180+1"]
[EndTime "8:17:22 PDT"]
[Termination "IngOscarArdila won by resignation"]

1. d4 {[%clk 0:02:57.8]} 1... Nf6 {[%clk 0:02:59.9]} 2. c4 {[%clk 0:02:58.3]}
2... c5 {[%clk 0:03:00.5]} 3. d5 {[%clk 0:02:58.2]} 3... e6 {[%clk 0:03:01.1]}
4. Nc3 {[%clk 0:02:58]} 4... exd5 {[%clk 0:03:01.8]} 5. cxd5 {[%clk 0:02:58.2]}
5... d6 {[%clk 0:03:02.5]} 6. e4 {[%clk 0:02:58.1]} 6... g6 {[%clk 0:03:02.9]}
7. h3 {[%clk 0:02:58.3]} 7... Bg7 {[%clk 0:03:03.6]} 8. Nf3 {[%clk 0:02:58]}
8... O-O {[%clk 0:03:04.3]} 9. Bd3 {[%clk 0:02:58.2]} 9... a6 {[%clk 0:03:05]}
10. a4 {[%clk 0:02:57.8]} 10... Re8 {[%clk 0:03:05.7]} 11. O-O {[%clk
0:02:57.7]} 11... Nbd7 {[%clk 0:03:05.9]} 12. Bf4 {[%clk 0:02:57.1]} 12... Qe7
{[%clk 0:03:06.1]} 13. Re1 {[%clk 0:02:56.5]} 13... Nh5 {[%clk 0:03:06.1]} 14.
Bh2 {[%clk 0:02:56.2]} 14... Ne5 {[%clk 0:03:06.4]} 15. Be2 {[%clk 0:02:54.1]}
15... Bd7 {[%clk 0:02:38.5]} 16. Nxe5 {[%clk 0:02:50.8]} 16... Bxe5 {[%clk
0:02:38.4]} 17. Bxh5 {[%clk 0:02:42.2]} 17... Bxh2+ {[%clk 0:02:37.9]} 18. Kxh2
{[%clk 0:02:42.4]} 18... Qe5+ {[%clk 0:02:36.3]} 19. g3 {[%clk 0:02:25]} 19...
gxh5 {[%clk 0:02:08.3]} 20. f4 {[%clk 0:02:24.3]} 20... Qd4 {[%clk 0:02:01.4]}
21. Qf3 {[%clk 0:02:07]} 21... h4 {[%clk 0:01:54]} 22. gxh4 {[%clk 0:02:06.2]}
22... Kh8 {[%clk 0:01:52.7]} 23. Rad1 {[%clk 0:02:04.6]} 23... Qf6 {[%clk
0:01:47.4]} 24. Rg1 {[%clk 0:01:57.6]} 24... Rg8 {[%clk 0:01:40]} 25. Rg5 {[%clk
0:01:51.3]} 25... h6 {[%clk 0:01:31.1]} 26. e5 {[%clk 0:01:16.4]} 26... dxe5
{[%clk 0:01:28.9]} 27. Ne4 {[%clk 0:01:16.7]} 27... Qb6 {[%clk 0:01:22.6]} 28.
Rxg8+ {[%clk 0:01:06.5]} 28... Rxg8 {[%clk 0:01:21.2]} 29. fxe5 {[%clk
0:01:06.5]} 29... Qxb2+ {[%clk 0:01:20]} 30. Rd2 {[%clk 0:01:06.9]} 30... Qxe5+
{[%clk 0:01:19.7]} 31. Kh1 {[%clk 0:01:06.2]} 31... Bf5 {[%clk 0:00:45]} 32. Nf2
{[%clk 0:00:42.3]} 32... Rg3 {[%clk 0:00:33.3]} 33. Qe2 {[%clk 0:00:36.6]} 33...
Qg7 {[%clk 0:00:24.6]} 34. Rd1 {[%clk 0:00:25.1]} 34... Bxh3 {[%clk 0:00:18.5]}
35. Qe8+ {[%clk 0:00:21]} 35... Kh7 {[%clk 0:00:18.6]} 36. Qe4+ {[%clk
0:00:20.9]} 36... f5 {[%clk 0:00:17.9]} 37. Qe6 {[%clk 0:00:16.8]} 37... Bg2+
{[%clk 0:00:17.4]} 38. Kh2 {[%clk 0:00:16.5]} 38... Be4 {[%clk 0:00:15.3]} 39.
Nxe4 {[%clk 0:00:11.6]} 39... Rg2+ {[%clk 0:00:15]} 40. Kh1 {[%clk 0:00:12]}
40... fxe4 {[%clk 0:00:15.5]} 41. Qf5+ {[%clk 0:00:11.8]} 41... Rg6 {[%clk
0:00:15.1]} 42. Qxe4 {[%clk 0:00:11.1]} 42... Qb2 {[%clk 0:00:14]} 43. h5 {[%clk
0:00:09.7]} 43... Qc2 {[%clk 0:00:06.6]} 1-0

[Event "Early-Titled-Tuesday-Blitz-October-24-2023"]
[Site "Chess.com"]
[Date "2023.10.24"]
[Round "2"]
[White "gau248"]
[Black "lilleper1"]
[Result "1/2-1/2"]
[WhiteElo "2587"]
[BlackElo "2879"]
[TimeControl "180+1"]
[EndTime "8:17:23 PDT"]
[Termination "Game drawn by repetition"]

1. d4 {[%clk 0:03:00.9]} 1... Nf6 {[%clk 0:02:59.5]} 2. c4 {[%clk 0:02:56.1]}
2... e6 {[%clk 0:02:58.7]} 3. Nf3 {[%clk 0:02:56.2]} 3... c5 {[%clk 0:02:58.9]}
4. e3 {[%clk 0:02:52.4]} 4... d5 {[%clk 0:02:57.9]} 5. a3 {[%clk 0:02:51.9]}
5... Nc6 {[%clk 0:02:54.7]} 6. dxc5 {[%clk 0:02:49.8]} 6... Bxc5 {[%clk
0:02:51]} 7. b4 {[%clk 0:02:50.3]} 7... Bd6 {[%clk 0:02:48.3]} 8. Bb2 {[%clk
0:02:49.8]} 8... O-O {[%clk 0:02:42.3]} 9. Bd3 {[%clk 0:02:47]} 9... dxc4 {[%clk
0:02:41.7]} 10. Bxc4 {[%clk 0:02:47.9]} 10... Qc7 {[%clk 0:02:36.5]} 11. Nbd2
{[%clk 0:02:45.9]} 11... Ne5 {[%clk 0:02:34]} 12. Be2 {[%clk 0:02:36.3]} 12...
Bd7 {[%clk 0:02:21.7]} 13. Rc1 {[%clk 0:02:34.3]} 13... Qb8 {[%clk 0:02:20.6]}
14. O-O {[%clk 0:02:30.8]} 14... Rd8 {[%clk 0:02:20.1]} 15. h3 {[%clk
0:02:27.7]} 15... a5 {[%clk 0:02:16.1]} 16. b5 {[%clk 0:02:21.2]} 16... Nxf3+
{[%clk 0:02:05.7]} 17. Nxf3 {[%clk 0:02:20.9]} 17... a4 {[%clk 0:01:56.6]} 18.
Qc2 {[%clk 0:02:16.8]} 18... Rc8 {[%clk 0:01:31.3]} 19. Qd3 {[%clk 0:02:13]}
19... Rxc1 {[%clk 0:01:16.1]} 20. Rxc1 {[%clk 0:02:13.9]} 20... Be8 {[%clk
0:01:07.2]} 21. e4 {[%clk 0:02:07.6]} 21... Be7 {[%clk 0:01:04.6]} 22. Ne5
{[%clk 0:02:00.4]} 22... Qd8 {[%clk 0:01:00.5]} 23. Qe3 {[%clk 0:01:54.5]} 23...
Rc8 {[%clk 0:00:57.4]} 24. Rxc8 {[%clk 0:01:43.2]} 24... Qxc8 {[%clk 0:00:58.3]}
25. Ng4 {[%clk 0:01:42.6]} 25... Qc2 {[%clk 0:00:50.5]} 26. Nxf6+ {[%clk
0:01:40.8]} 26... gxf6 {[%clk 0:00:50.6]} 27. Bd4 {[%clk 0:01:20.5]} 27... Qb3
{[%clk 0:00:49.8]} 28. Qxb3 {[%clk 0:01:18.2]} 28... axb3 {[%clk 0:00:50]} 29.
Bb2 {[%clk 0:01:15.5]} 29... f5 {[%clk 0:00:35.5]} 30. exf5 {[%clk 0:01:05.1]}
30... exf5 {[%clk 0:00:36.4]} 31. Bc4 {[%clk 0:01:03.1]} 31... Bd7 {[%clk
0:00:35.7]} 32. a4 {[%clk 0:00:51.7]} 32... Be6 {[%clk 0:00:35.1]} 33. Bxe6
{[%clk 0:00:51.6]} 33... fxe6 {[%clk 0:00:36]} 34. a5 {[%clk 0:00:52.2]} 34...
Kf7 {[%clk 0:00:30.8]} 35. a6 {[%clk 0:00:49.8]} 35... bxa6 {[%clk 0:00:31.2]}
36. bxa6 {[%clk 0:00:50.1]} 36... Bc5 {[%clk 0:00:31.9]} 37. Kf1 {[%clk
0:00:50.4]} 37... Ke8 {[%clk 0:00:30.5]} 38. Ke2 {[%clk 0:00:49.4]} 38... Kd7
{[%clk 0:00:31]} 39. f3 {[%clk 0:00:41.8]} 39... Kc6 {[%clk 0:00:30.6]} 40. Kd3
{[%clk 0:00:42.3]} 40... Kb5 {[%clk 0:00:27.2]} 41. Kc3 {[%clk 0:00:41.4]} 41...
Kxa6 {[%clk 0:00:24.8]} 42. Kxb3 {[%clk 0:00:41.6]} 42... Kb5 {[%clk 0:00:25.2]}
43. Be5 {[%clk 0:00:41.1]} 43... Be7 {[%clk 0:00:20.1]} 44. Kc3 {[%clk
0:00:39.1]} 44... Kc5 {[%clk 0:00:20.3]} 45. Kd3 {[%clk 0:00:39.2]} 45... Kd5
{[%clk 0:00:20.9]} 46. Bb8 {[%clk 0:00:39.5]} 46... e5 {[%clk 0:00:20.7]} 47. g4
{[%clk 0:00:37.6]} 47... e4+ {[%clk 0:00:20.5]} 48. fxe4+ {[%clk 0:00:37.6]}
48... fxe4+ {[%clk 0:00:20.6]} 49. Ke2 {[%clk 0:00:38.3]} 49... Bg5 {[%clk
0:00:18.9]} 50. Bg3 {[%clk 0:00:37.7]} 50... h6 {[%clk 0:00:18.7]} 51. Bf2
{[%clk 0:00:37.6]} 51... Ke5 {[%clk 0:00:18]} 52. h4 {[%clk 0:00:33.1]} 52...
Be7 {[%clk 0:00:15.5]} 53. Be3 {[%clk 0:00:29.2]} 53... Bxh4 {[%clk 0:00:14.9]}
54. Bxh6 {[%clk 0:00:29.1]} 54... Be7 {[%clk 0:00:14.2]} 55. Be3 {[%clk
0:00:28.7]} 55... Ke6 {[%clk 0:00:13]} 56. Bf4 {[%clk 0:00:28.2]} 56... Kd5
{[%clk 0:00:13]} 57. Be3 {[%clk 0:00:27.2]} 57... Ke6 {[%clk 0:00:13.1]} 58. Bf4
{[%clk 0:00:27.4]} 58... Kd5 {[%clk 0:00:13.5]} 59. Be3 {[%clk 0:00:27.9]} 59...
Ke6 {[%clk 0:00:14]} 1/2-1/2

[Event "Early-Titled-Tuesday-Blitz-October-24-2023"]
[Site "Chess.com"]
[Date "2023.10.24"]
[Round "2"]
[White "Larina_Maria"]
[Black "Sjakkerntobi"]
[Result "0-1"]
[WhiteElo "2229"]
[BlackElo "2478"]
[TimeControl "180+1"]
[EndTime "8:17:23 PDT"]
[Termination "Sjakkerntobi won on time"]

1. e4 {[%clk 0:02:59.4]} 1... e5 {[%clk 0:02:59]} 2. Nf3 {[%clk 0:02:59]} 2...
Nc6 {[%clk 0:02:59.4]} 3. Nc3 {[%clk 0:02:59.1]} 3... Nf6 {[%clk 0:02:57.7]} 4.
Bb5 {[%clk 0:02:59.2]} 4... Bb4 {[%clk 0:02:54.3]} 5. O-O {[%clk 0:02:58.8]}
5... O-O {[%clk 0:02:54.5]} 6. d3 {[%clk 0:02:59]} 6... d6 {[%clk 0:02:54.7]} 7.
Ne2 {[%clk 0:02:59.1]} 7... Ne7 {[%clk 0:02:54.9]} 8. c3 {[%clk 0:02:59.4]} 8...
Ba5 {[%clk 0:02:54.8]} 9. Ng3 {[%clk 0:02:57.2]} 9... Ng6 {[%clk 0:02:54.7]} 10.
d4 {[%clk 0:02:55.6]} 10... c6 {[%clk 0:02:54.8]} 11. Bd3 {[%clk 0:02:55.3]}
11... Bc7 {[%clk 0:02:54.5]} 12. h3 {[%clk 0:02:53.3]} 12... a5 {[%clk
0:02:49.8]} 13. a4 {[%clk 0:02:53]} 13... Re8 {[%clk 0:02:47.6]} 14. Re1 {[%clk
0:02:53.3]} 14... Be6 {[%clk 0:02:28.9]} 15. Qc2 {[%clk 0:02:52]} 15... Qd7
{[%clk 0:02:27.3]} 16. Bd2 {[%clk 0:02:38.4]} 16... Rad8 {[%clk 0:02:25.6]} 17.
Rad1 {[%clk 0:02:34.7]} 17... Bb6 {[%clk 0:02:18.2]} 18. Bg5 {[%clk 0:02:21.7]}
18... Bxh3 {[%clk 0:02:03.2]} 19. gxh3 {[%clk 0:02:16.2]} 19... Qxh3 {[%clk
0:02:04.1]} 20. Bxf6 {[%clk 0:02:13.5]} 20... gxf6 {[%clk 0:02:04.6]} 21. Bf1
{[%clk 0:02:11.5]} 21... Qg4 {[%clk 0:02:03.1]} 22. Bg2 {[%clk 0:02:08.5]} 22...
Nf4 {[%clk 0:01:59.2]} 23. Nh2 {[%clk 0:01:15.8]} 23... Qg6 {[%clk 0:01:56.6]}
24. Kh1 {[%clk 0:01:12.5]} 24... Kh8 {[%clk 0:01:55.8]} 25. Rg1 {[%clk
0:01:10.8]} 25... Rg8 {[%clk 0:01:55.5]} 26. Bf3 {[%clk 0:01:05.8]} 26... Nh3
{[%clk 0:01:46.6]} 27. Rg2 {[%clk 0:01:03.8]} 27... Qh6 {[%clk 0:01:32.4]} 28.
Qc1 {[%clk 0:01:01.4]} 28... Nf4 {[%clk 0:01:32.3]} 29. Nf5 {[%clk 0:00:48.7]}
29... Qh3 {[%clk 0:01:28.3]} 30. Rg4 {[%clk 0:00:19.7]} 30... h5 {[%clk
0:01:16.1]} 31. Rxf4 {[%clk 0:00:15.5]} 31... exf4 {[%clk 0:01:12.3]} 32. Qxf4
{[%clk 0:00:16.4]} 32... Rg5 {[%clk 0:00:40.8]} 33. Nxd6 {[%clk 0:00:15]} 33...
Qe6 {[%clk 0:00:37]} 34. Nf5 {[%clk 0:00:14]} 34... Rdg8 {[%clk 0:00:35.8]} 35.
Qh4 {[%clk 0:00:08.1]} 35... R8g6 {[%clk 0:00:20]} 36. Re1 {[%clk 0:00:06]}
36... Kg8 {[%clk 0:00:19.9]} 37. Rf1 {[%clk 0:00:05.2]} 37... Kf8 {[%clk
0:00:19.9]} 38. Ng3 {[%clk 0:00:04.5]} 38... Bc7 {[%clk 0:00:19]} 39. Bxh5
{[%clk 0:00:03.9]} 39... Rh6 {[%clk 0:00:19.4]} 40. f4 {[%clk 0:00:02.7]} 40...
Rxg3 {[%clk 0:00:17.7]} 41. Qxg3 {[%clk 0:00:03.2]} 41... Rxh5 {[%clk
0:00:18.2]} 42. Kg2 {[%clk 0:00:03.1]} 42... Qb3 {[%clk 0:00:18]} 43. Rf2 {[%clk
0:00:03]} 43... Rh8 {[%clk 0:00:16.8]} 44. Ng4 {[%clk 0:00:02.9]} 44... Rg8
{[%clk 0:00:17.4]} 45. Kf3 {[%clk 0:00:02.7]} 45... Qd1+ {[%clk 0:00:17.4]} 46.
Re2 {[%clk 0:00:02.8]} 46... Qf1+ {[%clk 0:00:17.6]} 47. Qf2 {[%clk 0:00:02.9]}
47... Qh1+ {[%clk 0:00:18]} 48. Qg2 {[%clk 0:00:02.9]} 48... Qb1 {[%clk
0:00:17.9]} 49. Nf2 {[%clk 0:00:02.3]} 49... Rxg2 {[%clk 0:00:17.5]} 50. Kxg2
{[%clk 0:00:02.2]} 50... Bxf4 {[%clk 0:00:18]} 0-1

[Event "Early-Titled-Tuesday-Blitz-October-24-2023"]
[Site "Chess.com"]
[Date "2023.10.24"]
[Round "2"]
[White "IriBu"]
[Black "Zhigalko_Sergei"]
[Result "0-1"]
[WhiteElo "2594"]
[BlackElo "2952"]
[TimeControl "180+1"]
[EndTime "8:17:24 PDT"]
[Termination "Zhigalko_Sergei won on time"]

1. e4 {[%clk 0:03:00.9]} 1... c5 {[%clk 0:02:59.7]} 2. Nf3 {[%clk 0:02:59.9]}
2... Nc6 {[%clk 0:02:59.5]} 3. Nc3 {[%clk 0:02:58.5]} 3... Nf6 {[%clk
0:02:58.7]} 4. Bb5 {[%clk 0:02:56.7]} 4... Qc7 {[%clk 0:02:54.8]} 5. O-O {[%clk
0:02:54.3]} 5... Nd4 {[%clk 0:02:54.7]} 6. e5 {[%clk 0:02:15.1]} 6... Nxf3+
{[%clk 0:02:54.3]} 7. Qxf3 {[%clk 0:02:15.5]} 7... Qxe5 {[%clk 0:02:54.9]} 8. d3
{[%clk 0:02:11.6]} 8... e6 {[%clk 0:02:53.8]} 9. Bf4 {[%clk 0:02:08.3]} 9... Qh5
{[%clk 0:02:53.8]} 10. Qg3 {[%clk 0:02:02.8]} 10... a6 {[%clk 0:02:52.4]} 11.
Ba4 {[%clk 0:01:59.2]} 11... b5 {[%clk 0:02:44.3]} 12. Bb3 {[%clk 0:01:50.7]}
12... Bb7 {[%clk 0:02:43.3]} 13. f3 {[%clk 0:01:31.3]} 13... c4 {[%clk
0:02:34.1]} 14. dxc4 {[%clk 0:01:31]} 14... bxc4 {[%clk 0:02:35]} 15. Ba4 {[%clk
0:01:29]} 15... Qc5+ {[%clk 0:02:06.3]} 16. Kh1 {[%clk 0:01:26.5]} 16... Nh5
{[%clk 0:02:06.5]} 17. Qg4 {[%clk 0:01:13.6]} 17... Nxf4 {[%clk 0:02:03.9]} 18.
Qxf4 {[%clk 0:01:13.9]} 18... Bd6 {[%clk 0:01:50.4]} 19. Bxd7+ {[%clk
0:01:02.1]} 19... Ke7 {[%clk 0:01:41.4]} 20. Na4 {[%clk 0:00:22.5]} 20... Qh5
{[%clk 0:01:32.9]} 21. g4 {[%clk 0:00:22.6]} 21... Bxf4 {[%clk 0:01:06.8]} 22.
gxh5 {[%clk 0:00:22.4]} 22... Kxd7 {[%clk 0:01:01.5]} 23. Nb6+ {[%clk 0:00:22]}
23... Ke7 {[%clk 0:01:01.9]} 24. Nxa8 {[%clk 0:00:21.7]} 24... Rxa8 {[%clk
0:01:02.6]} 25. Rad1 {[%clk 0:00:21.1]} 25... Rc8 {[%clk 0:00:56.2]} 26. Kg2
{[%clk 0:00:19.6]} 26... Rc5 {[%clk 0:00:56.3]} 27. Rd4 {[%clk 0:00:19.8]} 27...
Be5 {[%clk 0:00:54.1]} 28. Rd2 {[%clk 0:00:16.7]} 28... Bxb2 {[%clk 0:00:53.4]}
29. Rfd1 {[%clk 0:00:15.8]} 29... Bd5 {[%clk 0:00:52.6]} 30. Rb1 {[%clk
0:00:13]} 30... c3 {[%clk 0:00:52.6]} 31. Rd4 {[%clk 0:00:13.4]} 31... Ra5
{[%clk 0:00:49.9]} 32. a4 {[%clk 0:00:12.3]} 32... Kd6 {[%clk 0:00:49.5]} 33.
Kg3 {[%clk 0:00:11.3]} 33... Kc5 {[%clk 0:00:47]} 34. Rbd1 {[%clk 0:00:11.5]}
34... Kd6 {[%clk 0:00:33.6]} 35. Rg4 {[%clk 0:00:10.7]} 35... g6 {[%clk
0:00:32.1]} 36. h6 {[%clk 0:00:11.1]} 36... Rc5 {[%clk 0:00:28]} 37. Rb4 {[%clk
0:00:11]} 37... Kc7 {[%clk 0:00:22.7]} 38. f4 {[%clk 0:00:08.5]} 38... a5 {[%clk
0:00:19]} 39. Rbd4 {[%clk 0:00:06.2]} 39... Ba3 {[%clk 0:00:19.3]} 40. h4 {[%clk
0:00:03.1]} 40... Rc6 {[%clk 0:00:17.5]} 41. Kg4 {[%clk 0:00:02.5]} 41... f5+
{[%clk 0:00:16.7]} 42. Kg3 {[%clk 0:00:01.5]} 42... Bc5 {[%clk 0:00:16.9]} 43.
R4d3 {[%clk 0:00:01.5]} 43... Bb4 {[%clk 0:00:17.4]} 44. Rd4 {[%clk 0:00:01.5]}
44... Bc5 {[%clk 0:00:16.1]} 45. R4d3 {[%clk 0:00:01.9]} 45... Be7 {[%clk
0:00:16.8]} 46. Rd4 {[%clk 0:00:02.3]} 46... Bf6 {[%clk 0:00:17.3]} 47. R4d3
{[%clk 0:00:02.8]} 47... Rc4 {[%clk 0:00:17.7]} 48. Rb1 {[%clk 0:00:03]} 48...
Rb4 {[%clk 0:00:18]} 49. Rbd1 {[%clk 0:00:01.9]} 49... Kc6 {[%clk 0:00:18.3]}
50. Re1 {[%clk 0:00:01.4]} 50... Be7 {[%clk 0:00:16.8]} 0-1

[Event "Early-Titled-Tuesday-Blitz-October-24-2023"]
[Site "Chess.com"]
[Date "2023.10.24"]
[Round "2"]
[White "pedro_gines"]
[Black "AndrewB92"]
[Result "1-0"]
[WhiteElo "2744"]
[BlackElo "2454"]
[TimeControl "180+1"]
[EndTime "8:17:24 PDT"]
[Termination "pedro_gines won on time"]

1. Nf3 {[%clk 0:03:00.9]} 1... d5 {[%clk 0:02:59.4]} 2. g3 {[%clk 0:03:00]} 2...
Nf6 {[%clk 0:02:59.3]} 3. Bg2 {[%clk 0:03:00.6]} 3... Bf5 {[%clk 0:02:57.3]} 4.
O-O {[%clk 0:03:00.7]} 4... c6 {[%clk 0:02:56.7]} 5. c4 {[%clk 0:03:00.5]} 5...
e6 {[%clk 0:02:56.5]} 6. cxd5 {[%clk 0:02:59.3]} 6... exd5 {[%clk 0:02:56.1]} 7.
d3 {[%clk 0:02:58.9]} 7... Be7 {[%clk 0:02:55.5]} 8. Nc3 {[%clk 0:02:58.9]} 8...
O-O {[%clk 0:02:55.2]} 9. Nd4 {[%clk 0:02:55.6]} 9... Bg6 {[%clk 0:02:50.5]} 10.
e4 {[%clk 0:02:56]} 10... c5 {[%clk 0:02:33]} 11. Nc2 {[%clk 0:02:32]} 11...
dxe4 {[%clk 0:02:12]} 12. dxe4 {[%clk 0:02:31.3]} 12... Nc6 {[%clk 0:02:10.5]}
13. Ne3 {[%clk 0:01:58.9]} 13... Qxd1 {[%clk 0:01:56]} 14. Rxd1 {[%clk
0:01:57.1]} 14... Rfd8 {[%clk 0:01:55.7]} 15. Ned5 {[%clk 0:01:53.6]} 15... Nxd5
{[%clk 0:01:51.2]} 16. Nxd5 {[%clk 0:01:53.3]} 16... Bf8 {[%clk 0:01:38.4]} 17.
Be3 {[%clk 0:01:48]} 17... b6 {[%clk 0:01:36.3]} 18. Rac1 {[%clk 0:01:46.5]}
18... f6 {[%clk 0:01:31]} 19. a3 {[%clk 0:01:44.7]} 19... Ne7 {[%clk 0:01:14.6]}
20. Nc7 {[%clk 0:01:29.6]} 20... Rac8 {[%clk 0:01:08.9]} 21. Ne6 {[%clk
0:01:25.5]} 21... Rxd1+ {[%clk 0:01:07.6]} 22. Rxd1 {[%clk 0:01:26.4]} 22... Kf7
{[%clk 0:00:49.2]} 23. Nxf8 {[%clk 0:01:26.7]} 23... Kxf8 {[%clk 0:00:48.4]} 24.
Rd7 {[%clk 0:01:18.8]} 24... Nc6 {[%clk 0:00:46]} 25. f4 {[%clk 0:01:16.4]}
25... Be8 {[%clk 0:00:35.9]} 26. Rd2 {[%clk 0:01:09.9]} 26... Na5 {[%clk
0:00:34.7]} 27. Rd1 {[%clk 0:01:00.5]} 27... Bc6 {[%clk 0:00:33.2]} 28. b4
{[%clk 0:00:46.4]} 28... cxb4 {[%clk 0:00:29.8]} 29. axb4 {[%clk 0:00:46.1]}
29... Nc4 {[%clk 0:00:28.7]} 30. Bf2 {[%clk 0:00:44.5]} 30... Re8 {[%clk
0:00:22.8]} 31. Rc1 {[%clk 0:00:40.6]} 31... b5 {[%clk 0:00:22]} 32. Re1 {[%clk
0:00:37.9]} 32... a6 {[%clk 0:00:20.6]} 33. Bc5+ {[%clk 0:00:37.7]} 33... Kf7
{[%clk 0:00:20.8]} 34. Kf2 {[%clk 0:00:38.6]} 34... f5 {[%clk 0:00:17.5]} 35. e5
{[%clk 0:00:31]} 35... Bxg2 {[%clk 0:00:16.6]} 36. Kxg2 {[%clk 0:00:31.9]} 36...
Rd8 {[%clk 0:00:14.4]} 37. e6+ {[%clk 0:00:32.1]} 37... Ke8 {[%clk 0:00:13.7]}
38. Ra1 {[%clk 0:00:28.5]} 38... Ra8 {[%clk 0:00:11.4]} 39. h3 {[%clk
0:00:25.7]} 39... a5 {[%clk 0:00:10.2]} 40. bxa5 {[%clk 0:00:22]} 40... Rxa5
{[%clk 0:00:10.5]} 41. Rb1 {[%clk 0:00:21.6]} 41... Ra2+ {[%clk 0:00:09.9]} 42.
Kf3 {[%clk 0:00:22.1]} 42... Rb2 {[%clk 0:00:06.8]} 43. Ra1 {[%clk 0:00:19.6]}
43... Rb3+ {[%clk 0:00:06.6]} 44. Kf2 {[%clk 0:00:18.5]} 44... Rb2+ {[%clk
0:00:03.9]} 45. Kg1 {[%clk 0:00:14.8]} 45... Kd8 {[%clk 0:00:02.4]} 46. e7+
{[%clk 0:00:14]} 46... Kd7 {[%clk 0:00:02.1]} 47. Ra7+ {[%clk 0:00:13.1]} 1-0